Cogmind - Beta 13 @@@ ROGUE MODE // 2024.03.31 @ 23:11:42 Player: Astrozal Result: Destroyed by as-65501 with Assembled Maul Performance ------------- Evolutions (0) 0 Regions Visited (2) 400 Robots Destroyed (1) 5 Value Destroyed (34) 34 Prototype IDs (1) 20 Alien Tech Used (0) 0 Bonus (0) 0 TOTAL SCORE: 459 Bonus ------- None Cogmind --------- Core Integrity 0/250 Matter 292/300 Energy 100/100 System Corruption 5% Temperature Danger (477) Movement Core (50) Location -10/Mines Parts ------- > --- POWER (1) -------- (None) > --- PROPULSION (2) --- (None) > --- UTILITY (2) ------ (None) > --- WEAPON (2) ------- Beam Cannon > --- INVENTORY (5) ---- Heat Sink Peak State ------------ > --- POWER ------------ Light Ion Engine > --- PROPULSION ------- Wheel Wheel > --- UTILITY ---------- Heat Sink High-powered Tractor Beam > --- WEAPON ----------- Improved EM Shotgun Improved EM Shotgun > --- INVENTORY -------- (None) [Rating: 12] Favorites ----------- Power Light Ion Engine Engine Light Ion Engine Propulsion Wheel Wheel Wheel Utility Heat Sink Device Heat Sink Protection Light Armor Plating Weapon Improved EM Shotgun Energy Gun Improved EM Shotgun Energy Cannon Beam Cannon Ballistic Gun Assault Rifle Build | -11 -10 -10 ------- Run | Yrd Mat Min Slots Evolved . | . . . Power . | . . . Propulsion . | . . . Utility . | . . . Weapon . | . . . Parts Attached 15 | 6 3 6 Power 2 | 1 . 1 Engine 2 | 1 . 1 Core . | . . . Reactor . | . . . Propulsion 2 | 2 . . Treads . | . . . Leg . | . . . Wheel 2 | 2 . . Hover . | . . . Flight . | . . . Utility 4 | 1 1 2 Device 2 | 1 1 . Storage . | . . . Processor . | . . . Hackware . | . . . Protection 2 | . . 2 Artifact . | . . . Weapon 7 | 2 2 3 Energy Gun 4 | . 2 2 Energy Cannon 1 | . . 1 Ballistic Gun 2 | 2 . . Ballistic Cannon . | . . . Launcher . | . . . Special Weapon . | . . . Impact Weapon . | . . . Slashing Weapon . | . . . Piercing Weapon . | . . . Special Melee Weapon . | . . . Unidentified Prototypes 1 | . 1 . Parts Lost 11 | . . 11 Power 2 | . . 2 Propulsion 2 | . . 2 Utility 3 | . . 3 Weapon 4 | . . 4 Highest Loss Streak 6 | . . 6 To Critical Strikes . | . . . Average Slot Usage (%) 68 | . 92 66 Engine 10 | . 14 10 Wheel 15 | . 28 14 Device 16 | . 21 16 Protection 2 | . . 2 Energy Gun 18 | . 28 17 Energy Cannon 4 | . . 4 Naked Turns . | . . . Heaviest Build 17 | 8 11 17 Greatest Support 20 | 20 20 20 Greatest Overweight (x) 5 | . . 5 Average Overweight (x) . | . . . Largest Inventory Capacity 5 | 5 5 5 Average Capacity 5 | 5 5 5 Most Carried 3 | . . 3 Average Carried . | . . . Final Capacity 5 | 5 5 5 Final Carried 1 | . . 1 Class Distribution -------------------- 100% | Mutant Dominant Class ---------------- Mutant | -10/Mines Resources | -11 -10 -10 ----------- Run | Yrd Mat Min Matter Collected 335 | 278 . 57 Remotely 30 | . . 30 Salvage Created 37 | 37 . . Parts 3 | 3 . . Haulers Intercepted . | . . . Recyclers Shooed . | . . . Parts Field Recycled . | . . . Retrieved Matter . | . . . Parts Self-Destructed . | . . . Prevented . | . . . Kills | -11 -10 -10 ------- Run | Yrd Mat Min Combat Hostiles Destroyed 1 | 1 . . Guns 1 | 1 . . Classes Destroyed 1 | 1 . . Grunt 1 | 1 . . Best Kill Streak 1 | 1 . . Combat Bots Only 1 | 1 . . Max Kills in Single Turn 1 | 1 . . Gunslinging . | . . . Exploded . | . . . Melee . | . . . Uniques/NPCs Destroyed . | . . . Combat | -11 -10 -10 -------- Run | Yrd Mat Min Hostile Shots Fired 66 | 4 . 62 Missed 16 | 2 . 14 Damage Taken 1017 | 24 . 993 Core 269 | . . 269 Absorbed by Shields . | . . . Core Remaining (%) 100 | 100 . . Volleys Fired 15 | 3 . 12 Largest 2 | 2 . 2 Hottest 135 | 40 . 135 Shots Fired 28 | 6 . 22 Gun 19 | 6 . 13 Cannon 9 | . . 9 Launcher . | . . . Special . | . . . Kinetic 6 | 6 . . Thermal 16 | . . 16 Explosive . | . . . Electromagnetic 6 | . . 6 Robot Hit Streak 3 | 2 . 3 Robot Miss Streak 3 | 1 . 3 Penetration Max . | . . . Secondary Targets . | . . . Shots Hit Robots 16 | 4 . 12 Core Hits 7 | 1 . 6 Critical Kills . | . . . Critical Parts Destroyed . | . . . Critical Strikes . | . . . Melee Attacks . | . . . Impact . | . . . Slashing . | . . . Piercing . | . . . Sneak Attacks . | . . . Combat Hostiles . | . . . Follow-up Attacks . | . . . Damage Inflicted 249 | 54 . 195 Guns 143 | 54 . 89 Cannons 106 | . . 106 Explosions . | . . . Melee . | . . . Ramming . | . . . Kinetic 54 | 54 . . Thermal 127 | . . 127 Explosive . | . . . Electromagnetic 68 | . . 68 Impact . | . . . Slashing . | . . . Piercing . | . . . Highest Corruption . | . . . Average Corruption . | . . . Corruption Purged . | . . . Corruption Blocked . | . . . Overload Shots . | . . . Overflow Damage . | . . . Projectiles . | . . . Explosions . | . . . Melee . | . . . Knockbacks . | . . . Impact . | . . . Kinetic . | . . . Secondary . | . . . Self-Inflicted Damage . | . . . Shots . | . . . Rammed . | . . . Targets Rammed . | . . . Kicked . | . . . Crushed . | . . . Highest Temperature 457 | . . 457 Average Temperature 125 | . . 125 Received Heat Transfer 232 | 12 . 220 Siege Activations . | . . . Robots Corrupted . | . . . Combat Hostiles . | . . . Parts Fried . | . . . Impact Corruptions . | . . . Robots Melted . | . . . Combat Hostiles . | . . . Parts Melted . | . . . Heat Transferred 259 | . . 259 Parts Sabotaged . | . . . Parts Stolen . | . . . Parts Stripped . | . . . Power Chain Reactions . | . . . Alert | -11 -10 -10 ------- Run | Yrd Mat Min Peak Influence 20 | 20 13 19 Initial 13 | . 13 4 Average 6 | 3 13 6 Maximum Alert Level . | . . . Low Security (%) 100 | 100 100 100 Level 1 . | . . . Level 2 . | . . . Level 3 . | . . . Level 4 . | . . . Level 5 . | . . . High Security . | . . . Max Security . | . . . Squads Dispatched . | . . . Investigation . | . . . Extermination . | . . . Reinforcement . | . . . Assault . | . . . Garrison . | . . . Intercept . | . . . Searches Triggered . | . . . Construction Impeded . | . . . Haulers Reinforced . | . . . Active Scanning Responses . | . . . Cargo Convoy Interrupts . | . . . Stealth | -11 -10 -10 --------- Run | Yrd Mat Min Distress Signals . | . . . Communications Jammed . | . . . Distress Signals . | . . . Times Spotted 23 | 1 . 22 Peak Tracking Total 13 | 1 . 13 Tactical Retreats 1 | . . 1 Traps | -11 -10 -10 ------- Run | Yrd Mat Min Traps Triggered . | . . . Indirectly . | . . . Trap Hack Attempts . | . . . Triggered . | . . . Disarmed . | . . . Reprogrammed . | . . . Reused . | . . . Traps Extracted . | . . . Installed . | . . . Triggered . | . . . Machines | -11 -10 -10 ---------- Run | Yrd Mat Min Machines Disabled . | . . . Max in Single Turn . | . . . Machines Repaired . | . . . Machines Dismantled . | . . . Machines Sabotaged . | . . . Overloaded Fab Kills . | . . . Hacking | -11 -10 -10 --------- Run | Yrd Mat Min Machines Accessed . | . . . Terminals . | . . . Fabricators . | . . . Repair Stations . | . . . Recycling Units . | . . . Scanalyzers . | . . . Garrison Access . | . . . Total Hacks . | . . . Successful . | . . . Failed . | . . . Catastrophic . | . . . Database Lockouts . | . . . Manual . | . . . Terminals . | . . . Fabricators . | . . . Repair Stations . | . . . Recycling Units . | . . . Scanalyzers . | . . . Garrison Access . | . . . Terminal Hacks . | . . . Fabricator Hacks . | . . . Repair Station Hacks . | . . . Recycling Unit Hacks . | . . . Scanalyzer . | . . . Garrison Access Hacks . | . . . Unauthorized Hacks . | . . . Terminals . | . . . Fabricators . | . . . Repair Stations . | . . . Recycling Units . | . . . Scanalyzers . | . . . Garrison Access . | . . . Data Cores Recovered . | . . . Used . | . . . Hacking Detections . | . . . Full Trace Events . | . . . Feedback Events . | . . . Feedback Blocked . | . . . Robot Schematics Acquired . | . . . Robots Built . | . . . Authchips . | . . . Time . | . . . Total Robot Build Rating . | . . . Part Schematics Acquired . | . . . Parts Built . | . . . Authchips . | . . . Time . | . . . Total Part Build Rating . | . . . Parts Repaired . | . . . Time . | . . . Parts Recycled . | . . . Recycled Matter . | . . . Retrieved Matter . | . . . Retrieved Components . | . . . Parts Scanalyzed . | . . . Part Schematics Acquired . | . . . Parts Damaged . | . . . Bothacking | -11 -10 -10 ------------ Run | Yrd Mat Min Used RIF Installer . | . . . Robots Hacked . | . . . Non-combat . | . . . Combat . | . . . Robot Hacks Applied . | . . . Relay Couplers Released . | . . . Fabnet Peak Effective % . | . . . Robots Rewired . | . . . Allies Hacked . | . . . Hacks Repelled . | . . . Allies | -11 -10 -10 -------- Run | Yrd Mat Min Total Allies . | . . . Largest Group . | . . . Highest-Rated Group . | . . . Highest-Rated Ally . | . . . Total Orders . | . . . Ally Attacks . | . . . Total Damage . | . . . Kills . | . . . Allies Corrupted . | . . . Allies Melted . | . . . Intel | -11 -10 -10 ------- Run | Yrd Mat Min Robot Analysis Total . | . . . Derelict Logs Recovered . | . . . Drone Launches . | . . . Drone Recoveries . | . . . Exploration | -11 -10 -10 ------------- Run | Yrd Mat Min Turns Passed 423 | 69 28 326 Spaces Moved 432 | 76 29 327 Core 158 | 33 . 125 Treads . | . . . Legs . | . . . Wheels 274 | 43 29 202 Hover . | . . . Flight . | . . . Fastest Speed 50 | 50 80 50 Average Speed 82 | 66 80 85 Slowest Speed 300 | 80 80 300 Overloaded Moves . | . . . Propulsion Burnouts . | . . . Robots Hopped . | . . . Cave-ins Triggered . | . . . Exploration Rate (%) 16 | 6 5 37 Regions Visited 2 Branch Regions 1 Pre-discovered Areas . | . . . Known Exits Taken . | . . . Unknown Exits Taken 2 | 1 1 . Scrap Searched 1 | . . 1 Spaces Dug . | . . . Terrain Destroyed 1 | . . 1 Melee . | . . . Projectile 1 | . . 1 AOE . | . . . Terrain Rammed . | . . . Walls Destroyed . | . . . Machines Disabled . | . . . Actions | -11 -10 -10 --------- Run | Yrd Mat Min Total 468 | 84 33 351 Wait . | . . . Move 430 | 75 28 327 Hop . | . . . Pick Up 5 | . . 5 Fast Attach 10 | 6 3 1 Attach 5 | . . 5 Detach 1 | . . 1 Swap . | . . . Drop 2 | . 2 . Fire 15 | 3 . 12 Melee . | . . . Ram . | . . . Kick . | . . . Crush . | . . . Escape Stasis . | . . . Rewire . | . . . Trap . | . . . Miscellaneous . | . . . Route ------- -11/Scrapyard -10/Materials -10/Mines History --------- Turn | Location | Event 2 | -11/Scrapyard | Met Revision 17 46 | -11/Scrapyard | Discovered new exit (range 8) 70 | -11/Scrapyard | Entered Materials 70 | -10/Materials | Discovered new exit (range 14) 98 | -10/Materials | Entered Mines 175 | -10/Mines | Joined a pair of Derelicts in attacking an 0b10 outpost 253 | -10/Mines | Assembled infested the area 270 | -10/Mines | Core integrity fell below 50% 300 | -10/Mines | Lost 6 parts (1p2n1u2w) 336 | -10/Mines | Core integrity fell below 20% 342 | -10/Mines | Build established: Mutant 364 | -10/Mines | Lost 3 parts (2u1w) 424 | -10/Mines | Destroyed by as-65501 with Assembled Maul Last Messages --------------- U-05 Engineer lays Concrete. K-01 Serf collects debris. U-05 Engineer builds a Wall. U-05 Engineer lays Concrete. K-01 Serf collects debris. U-05 Engineer lays Concrete. U-05 Engineer builds a Wall. K-01 Serf collects debris. Knocked back. U-05 Engineer builds a Wall. U-05 Engineer lays Concrete. as-65501 suffers critical hit (Burn). U-05 Engineer builds a Wall. U-05 Engineer lays Concrete. as-65501 heat spikes uncontrollably. U-05 Engineer builds a Wall. Beamcaster destroyed. U-05 Engineer builds a Wall. Lgt. Angular Momentum Engine destroyed. System corrupted by crushing effect (+5). Map ----- +----------------------------------------------------+ | ?????????????????????????????????????????????????? | | ?????????????????????????????????????????????????? | | ?????????????????????????????????????????????????? | | ?????????????????????????????????????????????????? | | ?????????????????????????????????????????????????? | | ?????????????????????????????????????????????????? | | ?????????????????????????????????????????????????? | | ?????????????????????????????????????????????????? | | ?????????????????????????????????????????????????? | | ?????????????????????????????????????????????????? | | ?????????????????????????????????????????????????? | | ?????????????????????????????????????????????????? | | ?????????????????????????????????????????????????? | | ?????????????????????????????????????????????????? | | ?????????????????????????????????????????????????? | | ?????????????????????????????????????????????????? | | ?????????????????????????????????##??????????????? | | ???????????????????????????????## #??????????????? | | ??????????????????????????#### ###?????????????? | | ??#####?????????????????###### ####### ## ""?? | | ### #???????????????### !% % ""?? | | ##?????????????## a% ""?? | | # ##?????????#### a #######???????? | | # #?????##### % # # ##?????????????? | | #?######## a # ## #??????????????? | | # #?# ### @ #??# #??????####????? | | #?# # # #?# #?????## ##???? | | #?## u # #?# #?????# ##??? | | #### % ## #?#?# #?????# #??? | | ! # ## ## #??# ####### #??? | | ##### #### #??# #??? | | ????# # ###u % ##??# ! #???? | | ????# ###### # ### # #??######### ##???? | | ????## ## ##????# # ## # #???????### #????? | | ?????######?????## # ? # #####??## ##???? | | ???????????????????# # #??# """ ##??? | | ????????????????????## # #??# """ #### | | ???????????????????????####### #### """ | | ?????????????????????????????# % | | ?????????????????????????????# | | | ?????????????????????????????####### ### | | ???????????????????????????????????######?## | | ???????????????????????????????????????????# | | ???????????????????????????????????????????## | | ????????????????????????????????????????????## | | ?????????????????????????????????????????????## | | ?????????????????????????????????????????????## | | ????????????????????????????????????????????## | | ????????????????????????????????????????????# | | ????????????????????????????????????????# | +----------------------------------------------------+ Best States ------------- Heat Dissipation 35 Energy Generation 18 Energy Capacity 150 Matter Stores 300 Matter Capacity 300 Sight Range 16 Terrain Scan Density 10 Armor Coverage 300 Evasion (%) 50 Item Schematics ----------------- None Robot Schematics ------------------ None Fabricated ------------ Nothing Alien Tech Used ----------------- None Achievements -------------- Risk Taker Slippery One Challenges ------------ None Game ------ Seed AssemblySuspensionPenetrator Manual? 0 Play Time 00:12:58 Cumulative 1.4 hours Start 2024.03.31 @ 23:00:25 End 2024.03.31 @ 23:11:42 Sessions 1 Manual Loads 0 Difficulty Rogue Special Mode None Game No. 3 Rogue 3 Adventurer 0 Explorer 0 Win Type - Total 0 Types 0/0/0/0/0/0/0/0/0 Lore% 0 Gallery% 3 Achievement% 3 Wizard Run 0 Options --------- Layout 1 ASCII 1 Keyboard 0 Movement Arrows Keybinds 0 Fullscreen 1 Font 16/SmallcapsGlow Map View 50x40 Zoom Use 0% Tactical HUD 0 Map Filters NONE Filters NONE Steam SD RUN: 32fb540f-99be-4cd0-bcfa-a36c157c741e